bitfinex-derivatives/quotes_BTCF0:USTF0_20250711
["timestamp","ask_amount","ask_price","bid_price","bid_amount"]
[1752193680011,0.43145,115340.0,115330.0,0.68021778]
[1752193680221,0.43201001,115340.0,115330.0,0.22609228]
[1752193680513,0.49421001,115340.0,115330.0,0.22549228]
[1752193681611,0.49421001,115340.0,115330.0,0.2022257]
[1752193682111,0.49421001,115340.0,115330.0,0.02884]
[1752193682821,0.49421001,115340.0,115330.0,0.1753908]
[1752193683416,1.77381001,115340.0,115330.0,0.002]
[1752193683722,1.77381001,115340.0,115330.0,0.1753908]
[1752193684314,2.29559121,115340.0,115330.0,0.002]
[1752193684511,2.12221551,115340.0,115330.0,0.002]
[1752193684914,1.77369001,115340.0,115330.0,0.1753908]
[1752193685110,1.77369001,115340.0,115330.0,0.2022308]
[1752193685309,1.77369001,115340.0,115330.0,0.5506363]
[1752193685619,1.77369001,115340.0,115330.0,0.1753908]
[1752193686522,1.77369001,115340.0,115330.0,0.2022308]
[1752193686916,1.77369001,115340.0,115330.0,0.5506363]
[1752193687113,0.49421001,115340.0,115330.0,0.5917563]
[1752193687421,0.49421001,115340.0,115330.0,0.61502288]
[1752193688121,0.49421001,115340.0,115330.0,0.5917563]
[1752193688417,0.46271001,115340.0,115330.0,0.5917563]
[1752193688721,0.46271001,115340.0,115330.0,0.6530563]
[1752193689218,0.07121001,115340.0,115330.0,1.2926563]
[1752193689521,0.003,115340.0,115330.0,1.2926563]
[1752193689718,0.003,115340.0,115330.0,1.6534563]
[1752193690320,0.003,115340.0,115330.0,1.2926563]
[1752193690514,0.003,115340.0,115330.0,0.9442508]
[1752193690720,0.43145,115340.0,115330.0,0.3046508]
[1752193690915,0.43145,115340.0,115330.0,1.2925763]
[1752193691120,0.46325,115340.0,115330.0,1.2925763]
[1752193691623,0.3638,115340.0,115330.0,1.2925763]
[1752193691826,0.003,115340.0,115330.0,1.2925763]
[1752193692626,0.003,115340.0,115330.0,0.6530563]
[1752193693028,0.003,115340.0,115330.0,1.2924963]
[1752193693327,0.003,115340.0,115330.0,0.67688288]
[1752193693824,0.003,115340.0,115330.0,0.96787738]
[1752193694016,0.003,115340.0,115330.0,1.31628288]
[1752193695023,0.003,115340.0,115330.0,1.34741902]
[1752193695925,0.4092001,115370.0,115360.0,0.1733458]
[1752193696223,0.49189,115370.0,115360.0,0.5868713]
[1752193696424,0.49189,115370.0,115360.0,0.5874313]
[1752193697021,0.49589,115370.0,115360.0,0.5874313]
[1752193697631,0.36724,115370.0,115360.0,0.5874313]
[1752193697823,0.36724,115370.0,115360.0,0.6176313]
[1752193698024,0.36724,115370.0,115360.0,0.6484313]
[1752193698224,0.36724,115370.0,115360.0,0.66198314]
[1752193698419,0.36724,115370.0,115360.0,0.68524972]
[1752193698630,0.01144,115370.0,115360.0,0.68624972]
[1752193698928,0.011,115370.0,115360.0,0.89074586]
[1752193699121,0.49455,115390.0,115380.0,0.2001556]
[1752193699325,0.394,115390.0,115380.0,1.2260811]
[1752193699631,0.394,115390.0,115380.0,1.2575811]
[1752193699828,0.46165,115390.0,115380.0,1.2883811]
[1752193700429,0.43534,115390.0,115380.0,1.2883811]
[1752193700730,0.07654,115390.0,115380.0,1.2893811]
[1752193700926,0.07654,115390.0,115380.0,1.2873811]
[1752193700927,0.0352,115390.0,115380.0,1.2873811]
[1752193701127,0.10285,115390.0,115380.0,1.2873811]
[1752193701330,0.13575,115390.0,115380.0,1.2249611]
[1752193701724,0.13575,115390.0,115380.0,1.2249211]
[1752193701928,0.49655,115390.0,115380.0,0.1991556]
[1752193702131,0.49655,115390.0,115380.0,0.8382356]
[1752193702635,0.49655,115390.0,115380.0,1.1866411]
[1752193703130,0.49711001,115390.0,115380.0,1.1872011]
[1752193705628,0.49711001,115390.0,115380.0,1.2242611]
[1752193706935,0.49711001,115390.0,115380.0,1.2878611]
[1752193707531,0.36336001,115390.0,115380.0,1.2878611]
[1752193707731,0.00256001,115390.0,115380.0,1.2878611]
[1752193707930,0.002,115390.0,115380.0,1.2878611]
[1752193708535,0.002,115410.0,115400.0,0.2350156]
[1752193708723,0.002,115410.0,115400.0,2.6359266]
[1752193708923,0.002,115410.0,115400.0,2.9967266]
[1752193709334,0.13002,115430.0,115420.0,0.2349856]
[1752193709531,0.07089,115430.0,115420.0,2.2215511]
[1752193709831,0.0326,115440.0,115430.0,0.2349706]
[1752193710033,0.0326,115440.0,115430.0,0.9441761]
[1752193710225,0.0326,115440.0,115430.0,1.0100761]
[1752193710633,0.0326,115440.0,115430.0,0.6492761]
[1752193710929,0.0637,115440.0,115430.0,1.0090761]
[1752193711129,0.13012,115440.0,115430.0,0.2339706]
[1752193711629,0.49092,115440.0,115430.0,0.8375106]
[1752193711835,0.49292,115440.0,115430.0,0.8375106]
[1752193712027,0.49292,115440.0,115430.0,1.1859161]
[1752193712439,0.49292,115440.0,115430.0,1.1839161]
[1752193712823,0.49292,115440.0,115430.0,0.5813761]
[1752193713135,0.49752001,115440.0,115430.0,1.2204561]
[1752193714636,0.13672001,115440.0,115430.0,1.2204561]
[1752193714835,0.13612,115440.0,115430.0,1.2204561]
[1752193715028,0.0371,115440.0,115430.0,1.2204561]
[1752193715229,0.0371,115440.0,115430.0,1.6135561]
[1752193715427,0.0371,115440.0,115430.0,1.6458561]
[1752193716327,0.006,115440.0,115430.0,1.6458561]
[1752193716536,0.006,115440.0,115430.0,1.8191121]
[1752193717138,0.0635,115450.0,115440.0,0.2289556]
[1752193717139,0.002,115450.0,115440.0,0.2289556]
[1752193717340,0.06642,115470.0,115460.0,0.2269256]
[1752193717540,0.12910001,115470.0,115460.0,1.64286138]
[1752193717833,0.0622,115470.0,115460.0,1.64242138]
[1752193718240,0.0622,115470.0,115460.0,1.67492138]
[1752193718433,0.0622,115470.0,115460.0,1.69168993]
[1752193718734,0.0307,115470.0,115460.0,1.69168993]
[1752193719042,0.07139,115480.0,115470.0,0.1731806]
[1752193719237,0.0622,115480.0,115470.0,0.9361161]
[1752193719443,0.0882901,115490.0,115480.0,0.2268956]
[1752193719639,0.13122,115490.0,115480.0,0.5753011]
[1752193719940,0.0648,115490.0,115480.0,1.5742211]
[1752193720141,0.0648,115490.0,115480.0,1.6351211]
[1752193720642,0.0648,115490.0,115480.0,1.6361211]
[1752193721342,0.0648,115490.0,115480.0,1.6371211]
[1752193721536,0.13122,115490.0,115480.0,0.5773011]
[1752193721741,0.13122,115490.0,115480.0,1.2153011]
[1752193721934,0.13122,115490.0,115480.0,0.5773011]
[1752193722135,0.13122,115490.0,115480.0,1.2152611]
[1752193722337,0.13122,115490.0,115480.0,0.5773011]
[1752193722542,0.13122,115490.0,115480.0,1.2152611]
[1752193722740,0.13122,115490.0,115480.0,1.5760611]
[1752193722741,0.0648,115490.0,115480.0,1.5760611]
[1752193722941,0.3608,115520.0,115480.0,1.59280366]
[1752193723138,0.40069,115520.0,115510.0,0.5485861]
[1752193723436,0.04049001,115520.0,115510.0,0.8387006]
[1752193723741,0.03989,115520.0,115510.0,1.1871061]
[1752193724342,0.10529,115520.0,115510.0,1.1871061]
[1752193724645,0.10529,115520.0,115510.0,0.5491861]
[1752193724839,0.10529,115520.0,115510.0,0.0006]
[1752193725034,0.03989,115510.0,115500.0,0.63528424]
[1752193725235,0.10429,115510.0,115500.0,1.24658424]
[1752193725445,0.46509,115510.0,115500.0,0.63848974]
[1752193725641,0.46565001,115510.0,115500.0,0.81162534]
[1752193726447,0.46565001,115510.0,115500.0,0.00068974]
[1752193726647,0.46565001,115510.0,115500.0,0.64048974]
[1752193726648,0.46665001,115510.0,115500.0,0.64048974]
[1752193726844,0.46665001,115510.0,115500.0,0.64088974]
[1752193726845,0.63977061,115510.0,115500.0,0.64088974]
[1752193727153,0.46665001,115510.0,115500.0,0.81402534]
[1752193727334,0.46665001,115510.0,115500.0,0.17730534]
[1752193727539,0.63977061,115510.0,115500.0,0.00368974]
[1752193727747,0.46665001,115510.0,115500.0,0.17682534]
[1752193729246,0.49318001,115510.0,115500.0,0.17682534]
[1752193730051,0.49318001,115510.0,115500.0,0.20349534]
[1752193730240,0.49318001,115510.0,115500.0,0.55190084]
[1752193730442,0.49318001,115510.0,115500.0,0.57896084]
[1752193730637,0.13238001,115510.0,115500.0,0.57896084]
[1752193730946,0.13182,115510.0,115500.0,0.57896084]
[1752193731839,0.10529,115510.0,115500.0,0.55229084]
[1752193732039,0.10529,115510.0,115500.0,0.20388534]
[1752193732338,0.10529,115510.0,115500.0,0.55229084]
[1752193733145,0.10529,115510.0,115500.0,0.55273084]
[1752193734054,0.0654,115510.0,115500.0,0.55273084]
[1752193734240,0.0654,115510.0,115500.0,0.97157084]
[1752193734641,0.0654,115510.0,115500.0,1.49312834]
[1752193734642,0.001,115510.0,115500.0,1.49312834]
[1752193734942,0.00012974,115520.0,115510.0,0.2289306]
[1752193735142,0.00056974,115520.0,115510.0,1.6082561]
[1752193735344,0.00012974,115520.0,115510.0,1.6396961]
[1752193735547,0.02718974,115520.0,115510.0,1.2152961]
[1752193735845,0.12947974,115520.0,115510.0,1.2152961]
[1752193736245,0.06222974,115520.0,115510.0,1.2172961]
[1752193736451,0.00012974,115520.0,115510.0,1.2482961]
[1752193736654,0.00012974,115520.0,115510.0,1.6416961]
[1752193738750,0.00112974,115520.0,115510.0,1.6456961]
[1752193739354,0.00112974,115520.0,115510.0,1.8917961]
[1752193739546,0.002,115530.0,115520.0,0.2003456]
[1752193739742,0.0312,115540.0,115530.0,0.1730906]
[1752193739949,0.07309,115550.0,115540.0,0.2257556]
[1752193740155,0.06462001,115550.0,115540.0,0.5741611]
[1752193740450,0.49215,115550.0,115540.0,0.2007556]
[1752193740655,0.49259,115550.0,115540.0,1.1860411]
[1752193740844,0.49259,115550.0,115540.0,0.2007556]
[1752193741151,0.49259,115550.0,115540.0,0.8376356]
[1752193741350,0.49259,115550.0,115540.0,0.8381156]
[1752193741562,0.49259,115550.0,115540.0,0.90800458]
[1752193741951,1.0170562,115550.0,115540.0,0.00048]
[1752193742255,0.06725,115540.0,115530.0,0.17322034]
[1752193742441,0.49275,115540.0,115530.0,0.17322034]
[1752193742648,0.49323001,115540.0,115530.0,0.17322034]
[1752193742851,0.49323001,115540.0,115530.0,0.00012974]
[1752193743057,0.49323001,115540.0,115530.0,0.17322034]
[1752193743743,0.49323001,115540.0,115530.0,0.52162584]
[1752193743944,0.49323001,115540.0,115530.0,0.52206584]
[1752193744144,0.49323001,115540.0,115530.0,0.54930584]
[1752193744653,0.49323001,115540.0,115530.0,0.55130584]
[1752193745153,0.49323001,115540.0,115530.0,0.20290034]
[1752193745349,0.84163551,115540.0,115530.0,0.00212974]
[1752193745653,0.49323001,115540.0,115530.0,0.17522034]
[1752193745854,0.49323001,115540.0,115520.0,0.00173123]
[1752193745855,1.43781521,115540.0,115520.0,0.00173123]
[1752193746044,0.04019,115520.0,115510.0,0.27638115]
[1752193746250,0.40099,115520.0,115510.0,0.27638115]
[1752193746448,0.43323,115520.0,115510.0,0.27638115]
[1752193746847,0.7816355,115520.0,115510.0,0.23310195]
[1752193747352,0.43323,115520.0,115510.0,0.23310195]
[1752193749156,0.46433,115520.0,115510.0,0.23310195]
[1752193749360,0.49239,115520.0,115510.0,0.23310195]
[1752193749751,0.49539,115520.0,115510.0,0.23410195]
[1752193750558,0.8437955,115520.0,115510.0,0.23410195]
[1752193750757,0.49539,115520.0,115510.0,0.23410195]
[1752193751555,0.49239,115520.0,115510.0,0.23310195]
[1752193751858,0.49439,115520.0,115510.0,0.23310195]
[1752193752356,0.49439,115520.0,115510.0,0.24663782]
[1752193752858,0.49439,115520.0,115510.0,0.23310195]
[1752193753357,0.49439,115520.0,115510.0,0.24663783]
[1752193754454,0.49439,115520.0,115510.0,0.23310195]
[1752193755756,0.49439,115520.0,115510.0,0.58150745]
[1752193755959,0.49439,115520.0,115510.0,0.23354195]
[1752193756154,0.49439,115520.0,115510.0,0.23310195]
[1752193757250,0.49539,115520.0,115510.0,0.19082385]
[1752193757448,0.49839,115520.0,115510.0,0.19083535]
[1752193757651,0.49839,115520.0,115510.0,0.56648085]
[1752193757865,0.49839,115520.0,115510.0,0.56692085]
[1752193759154,0.49839,115520.0,115510.0,0.58045652]
[1752193759354,0.49739,115520.0,115510.0,0.56692085]
[1752193759560,0.5437901,115520.0,115510.0,0.56692085]
[1752193760158,0.5417901,115520.0,115510.0,0.56692085]
[1752193760458,0.5437901,115520.0,115510.0,0.56692085]
[1752193760654,0.49739,115520.0,115510.0,0.60589615]
[1752193760862,0.13659,115520.0,115510.0,1.24281615]
[1752193761063,0.13615,115520.0,115510.0,1.24281615]
[1752193761260,0.002,115520.0,115510.0,1.24281615]
[1752193761556,0.002,115520.0,115510.0,2.08765215]
[1752193761765,0.002,115520.0,115510.0,2.11095842]
[1752193762262,0.002,115520.0,115510.0,1.86095627]
[1752193762454,0.00212974,115530.0,115520.0,0.2239956]
[1752193762761,0.00212974,115530.0,115520.0,1.01133425]
[1752193763157,0.00212974,115530.0,115520.0,1.01177425]
[1752193763862,0.00212974,115530.0,115520.0,1.65057425]
[1752193764563,0.00212974,115530.0,115520.0,1.67392052]
[1752193764755,0.4072001,115550.0,115540.0,0.2008657]
[1752193764756,0.1776501,115550.0,115540.0,0.2008657]
[1752193765060,0.07513,115550.0,115540.0,1.22153292]
[1752193765261,0.0464001,115550.0,115540.0,1.25457292]
[1752193765461,0.0464001,115550.0,115540.0,1.28697292]
[1752193766171,0.46599,115560.0,115550.0,0.2008507]
[1752193766172,0.49205,115560.0,115550.0,0.2008507]
[1752193766355,0.49249,115560.0,115550.0,0.5712262]
[1752193766560,0.49249,115560.0,115550.0,0.5716662]
[1752193767665,0.49449,115560.0,115550.0,0.5716662]
[1752193768261,0.49449,115560.0,115550.0,0.58519741]
[1752193768464,0.36324,115560.0,115550.0,0.5716662]
[1752193768660,0.00244,115560.0,115550.0,1.99286232]
[1752193768861,0.003,115560.0,115550.0,1.99286232]
[1752193770063,0.003,115560.0,115550.0,1.31939759]
[1752193770266,0.003,115560.0,115550.0,2.01620859]
[1752193770471,0.003,115560.0,115550.0,1.99286232]
[1752193770659,0.002,115570.0,115560.0,0.2196157]
[1752193770860,0.002,115570.0,115560.0,0.9907212]
[1752193771573,0.49355,115590.0,115580.0,0.2008058]
[1752193771764,0.4092001,115600.0,115580.0,1.22100495]
[1752193772063,0.04429,115600.0,115590.0,0.9287763]
[1752193772270,0.002,115600.0,115590.0,0.9912763]
[1752193773063,0.002,115600.0,115590.0,0.9917163]
[1752193773260,0.005,115600.0,115590.0,0.9917163]
[1752193773662,0.003,115600.0,115590.0,1.06198233]
[1752193774064,0.003,115600.0,115590.0,0.70118233]
[1752193774465,0.003,115600.0,115590.0,1.06198233]
[1752193774963,0.9535413,115600.0,115590.0,0.00044]
[1752193775163,0.06835,115590.0,115580.0,0.17314074]
[1752193775368,0.46025,115590.0,115580.0,0.17314074]
[1752193775569,0.43479001,115590.0,115580.0,0.17314074]
[1752193775764,0.43479001,115590.0,115580.0,0.63632974]
[1752193775971,0.43479001,115590.0,115580.0,0.80978554]
[1752193776269,0.43479001,115590.0,115580.0,1.15919104]
[1752193776467,0.43479001,115590.0,115580.0,1.16019104]
[1752193776663,0.43479001,115590.0,115580.0,0.52399104]
[1752193776863,0.43479001,115590.0,115580.0,1.24759922]
[1752193777071,0.04289001,115590.0,115580.0,1.60839922]
[1752193777263,0.04229,115590.0,115580.0,1.67129922]
[1752193777863,0.3958,115600.0,115590.0,0.1730008]
[1752193778060,0.43809,115600.0,115590.0,0.5214063]
[1752193778260,0.07729,115600.0,115590.0,0.5401863]
[1752193778571,0.07729,115600.0,115590.0,0.6030863]
[1752193778963,0.07829,115600.0,115590.0,0.6030863]
[1752193779164,0.07829,115600.0,115590.0,0.9638863]
[1752193779764,0.07829,115600.0,115590.0,0.5704863]
[1752193779970,0.11099,115600.0,115590.0,1.1762663]
[1752193781173,0.11099,115600.0,115590.0,1.2387663]
[1752193781975,0.13705,115600.0,115590.0,1.2387663]
[1752193782371,0.13705,115600.0,115590.0,0.6304763]
[1752193782679,0.13705,115600.0,115590.0,1.2664363]
[1752193783178,0.49785,115600.0,115590.0,0.2012308]
[1752193783378,0.49841001,115600.0,115590.0,0.2007908]
[1752193783578,0.49841001,115600.0,115590.0,0.8367108]
[1752193783778,0.49841001,115600.0,115590.0,0.8371508]
[1752193783979,0.49841001,115600.0,115590.0,1.1855563]
[1752193784284,0.49841001,115600.0,115590.0,0.5496363]
[1752193784469,0.49841001,115600.0,115590.0,1.1854763]
[1752193784865,0.49841001,115600.0,115590.0,0.1734408]
[1752193785178,0.45612001,115600.0,115590.0,0.8088008]
[1752193785372,0.45612001,115600.0,115590.0,0.1734408]
[1752193785573,0.62910581,115600.0,115580.0,0.89544044]
[1752193785881,0.49225,115590.0,115580.0,0.26008044]
[1752193786176,0.49285001,115590.0,115580.0,0.89540044]
[1752193786377,0.49285001,115590.0,115580.0,1.24436594]
[1752193786965,0.49285001,115590.0,115580.0,1.27315594]
[1752193787674,0.49285001,115590.0,115580.0,1.29193594]
[1752193787877,0.13205001,115590.0,115580.0,1.65273594]
[1752193788078,0.13145,115590.0,115580.0,1.72286316]
[1752193788273,0.0318,115590.0,115580.0,1.72286316]
[1752193788475,0.0318,115590.0,115580.0,1.78606316]
[1752193788673,0.10075,115600.0,115590.0,0.2195709]
[1752193788879,0.13245,115600.0,115590.0,0.5669764]
[1752193789675,0.10639,115600.0,115590.0,0.5669764]
[1752193789878,0.0641,115600.0,115590.0,0.5669764]
[1752193790177,0.13345,115600.0,115590.0,0.5669764]
[1752193790382,0.13345,115600.0,115590.0,1.2026164]
[1752193791673,0.13345,115600.0,115590.0,0.8542109]
[1752193791870,0.13345,115600.0,115590.0,0.5669764]
[1752193792076,0.13345,115600.0,115590.0,1.2026164]
[1752193792475,0.13345,115600.0,115590.0,0.5481964]
[1752193792672,0.13345,115600.0,115590.0,0.1730008]
[1752193792882,0.13345,115600.0,115590.0,0.63552]
[1752193792883,0.49425,115600.0,115590.0,0.63552]
[1752193793179,0.49425,115600.0,115590.0,0.8085208]
[1752193794278,0.49425,115600.0,115590.0,0.8090008]
[1752193794279,0.49485001,115600.0,115590.0,0.8090008]
[1752193794580,0.49485001,115600.0,115590.0,1.1574063]
[1752193794785,0.49485001,115600.0,115590.0,1.1750863]
[1752193795180,0.13405001,115600.0,115590.0,1.1750863]
[1752193795380,0.13345,115600.0,115590.0,1.1750863]
[1752193795886,0.13345,115600.0,115590.0,1.1574063]
[1752193796283,0.13345,115600.0,115590.0,0.5490063]
[1752193796484,0.13345,115600.0,115590.0,1.1844063]
[1752193796681,0.49425,115600.0,115590.0,1.1844063]
[1752193796988,0.49481001,115600.0,115590.0,1.1844063]
[1752193798590,0.49481001,115600.0,115590.0,0.8360008]
[1752193799492,0.49481001,115600.0,115590.0,0.1734808]
[1752193799686,0.49481001,115600.0,115590.0,0.8083608]
[1752193799989,0.49481001,115600.0,115590.0,0.1730008]
[1752193800286,0.1730011,115590.0,115580.0,0.00012974]
[1752193800489,0.06576,115580.0,115570.0,0.19622572]
[1752193800679,0.8080655,115580.0,115570.0,0.173028]
[1752193800883,0.632708,115580.0,115570.0,0.173028]
[1752193801380,0.632708,115580.0,115570.0,0.5485535]
[1752193801381,0.45966,115580.0,115570.0,0.5485535]
[1752193801779,0.45966,115580.0,115570.0,0.5535535]
[1752193802786,0.8080655,115580.0,115570.0,0.178028]
[1752193802981,1.1541296,115580.0,115570.0,0.178028]
[1752193803187,0.63326801,115580.0,115570.0,0.178028]
[1752193803790,0.49252001,115580.0,115570.0,0.178028]
[1752193804593,0.49252001,115580.0,115570.0,0.5264335]
[1752193804792,0.49252001,115580.0,115570.0,0.5541135]
[1752193805787,0.46022001,115580.0,115570.0,1.2069535]
[1752193805986,0.46022001,115580.0,115570.0,1.2724535]
[1752193806186,0.46022001,115580.0,115570.0,0.62809122]
[1752193806486,0.66543611,115580.0,115570.0,0.00556]
[1752193806685,0.49242001,115580.0,115570.0,0.178031]
[1752193807493,0.66543611,115580.0,115570.0,0.005]
[1752193807890,1.64896161,115580.0,115570.0,0.005]
[1752193808097,1.82200961,115580.0,115570.0,0.005]
[1752193809086,0.2387911,115570.0,115560.0,0.00173063]
[1752193809391,0.9855666,115570.0,115560.0,0.17477663]
[1752193810397,0.6371611,115570.0,115560.0,0.17477663]
[1752193810696,0.6371611,115570.0,115560.0,0.17577663]
[1752193810697,0.9855666,115570.0,115560.0,0.17577663]
[1752193810896,0.9855666,115570.0,115560.0,0.00273063]
[1752193811099,1.4086306,115570.0,115560.0,0.00273063]
[1752193811399,0.2131761,115560.0,115550.0,0.1730494]
[1752193811598,0.9852816,115560.0,115550.0,0.1730494]
[1752193811798,1.8190316,115560.0,115550.0,0.1730494]
[1752193812599,0.1986911,115550.0,115540.0,0.23965736]
[1752193812791,0.6625211,115550.0,115540.0,0.25318802]
[1752193812992,0.66312111,115550.0,115540.0,0.25318802]
[1752193813191,1.18462261,115550.0,115540.0,0.18660676]
[1752193813392,1.18462261,115550.0,115540.0,0.03685612]
[1752193813587,0.1730761,115540.0,115530.0,0.02331423]
[1752193813794,2.2813816,115540.0,115530.0,0.19640523]
[1752193813992,2.45504561,115540.0,115530.0,0.02331423]
[1752193814193,0.198721,115530.0,115520.0,0.3591044]
[1752193814402,1.0113565,115530.0,115520.0,0.32844826]
[1752193814701,1.18503651,115530.0,115520.0,0.19863146]
[1752193814898,1.18503651,115530.0,115520.0,0.19815146]
[1752193815199,1.18503651,115530.0,115520.0,0.17483723]
[1752193815696,1.18503651,115530.0,115520.0,0.00173123]
[1752193815999,1.18503651,115530.0,115520.0,0.17483713]
[1752193816000,1.18603651,115530.0,115520.0,0.17483713]
[1752193816607,1.18703651,115530.0,115520.0,0.00173123]
[1752193816798,0.2388809,115510.0,115500.0,0.02331423]
[1752193817000,0.2388959,115500.0,115490.0,0.07781608]
[1752193817199,1.0127014,115500.0,115490.0,0.03113614]
[1752193817390,1.08763141,115500.0,115490.0,0.03113614]
[1752193817595,2.35755141,115500.0,115490.0,0.20428704]
[1752193817800,2.00914591,115500.0,115490.0,0.20428704]
[1752193818295,1.90914591,115500.0,115490.0,0.20428704]
[1752193818601,0.46609001,115500.0,115490.0,0.59077254]
[1752193819102,0.43499001,115500.0,115490.0,0.59477254]
[1752193819298,0.40249001,115500.0,115490.0,0.62547254]
[1752193819494,0.40249001,115500.0,115490.0,0.66117254]
[1752193819697,0.40349001,115500.0,115490.0,0.65717254]
[1752193820298,0.40249001,115500.0,115490.0,0.65217254]
[1752193820498,0.40249001,115500.0,115490.0,0.65317254]
[1752193820900,0.40249001,115500.0,115490.0,0.30476704]
[1752193821200,0.40249001,115500.0,115490.0,0.65317254]
[1752193821503,0.36236001,115500.0,115490.0,0.65317254]
[1752193821698,0.60125591,115500.0,115490.0,0.15873614]
[1752193821899,0.60125591,115500.0,115490.0,0.12803614]
[1752193822092,0.66425591,115500.0,115490.0,0.02812]
[1752193822297,1.01266141,115500.0,115490.0,0.05925614]
[1752193822497,1.01266141,115500.0,115490.0,0.03213614]
[1752193823207,1.01266141,115500.0,115490.0,0.001]
[1752193823702,0.98703141,115500.0,115490.0,0.001]
[1752193824092,0.63862591,115500.0,115490.0,0.001]
[1752193824292,1.16019942,115500.0,115490.0,0.001]
[1752193824498,0.2104709,115490.0,115480.0,0.03286797]
[1752193824696,2.2507764,115490.0,115480.0,0.03286797]
[1752193824899,2.4239604,115490.0,115480.0,0.03286797]
[1752193825299,2.4239604,115490.0,115480.0,0.00173183]
[1752193825701,2.4239604,115490.0,115480.0,0.17689783]
[1752193825897,1.9024909,115490.0,115480.0,0.17889783]
[1752193826104,1.72934,115490.0,115480.0,0.59900947]
[1752193826299,1.902491,115490.0,115480.0,0.21003397]
[1752193826603,1.902491,115490.0,115480.0,0.17889783]
[1752193827105,1.902491,115490.0,115480.0,0.00573183]
[1752193827291,2.4240805,115490.0,115480.0,0.00573183]
[1752193827606,2.4240805,115490.0,115460.0,1e-08]
[1752193827607,0.173181,115470.0,115460.0,1e-08]
[1752193827792,1.8278425,115470.0,115460.0,1e-08]
[1752193827991,0.03732,115450.0,115440.0,0.17495843]
[1752193828196,0.932131,115450.0,115440.0,0.23696153]
[1752193828398,0.82118001,115450.0,115440.0,0.23696153]
[1752193829105,0.99539091,115450.0,115440.0,0.17795843]
[1752193829399,0.99539091,115450.0,115440.0,0.18095843]
[1752193829600,0.82218001,115450.0,115440.0,0.18095843]
[1752193829902,0.79108001,115450.0,115440.0,0.56993393]
[1752193830203,0.76048001,115450.0,115440.0,0.63357393]
[1752193832107,0.93369091,115450.0,115440.0,0.00817243]
[1752193832303,1.34499641,115450.0,115440.0,0.00773243]
[1752193832495,1.34499641,115450.0,115410.0,0.1025731]
[1752193832496,0.1732559,115420.0,115410.0,0.1025731]
[1752193832701,0.9197814,115420.0,115410.0,0.04057]
[1752193832898,0.98923541,115420.0,115410.0,0.06197334]
[1752193833098,0.46158001,115420.0,115410.0,0.23524424]
[1752193833410,0.63483591,115420.0,115410.0,0.06197334]
[1752193833600,0.63483591,115420.0,115410.0,0.1732709]
[1752193833601,0.46158001,115420.0,115410.0,0.1732709]
[1752193833807,0.63583591,115420.0,115410.0,0.04557]
[1752193834007,0.63583591,115420.0,115410.0,0.005]
[1752193834396,0.46258001,115420.0,115410.0,0.1782709]
[1752193835098,0.46258001,115420.0,115410.0,0.1732709]
[1752193835099,0.46158001,115420.0,115410.0,0.1732709]
[1752193835394,0.46258001,115420.0,115410.0,0.1762709]
[1752193835794,0.46358001,115420.0,115410.0,0.007]
[1752193836001,0.98524141,115420.0,115410.0,0.007]
[1752193836209,0.63683591,115420.0,115410.0,0.007]
[1752193836402,0.98524141,115420.0,115410.0,0.007]
[1752193837007,0.63683591,115420.0,115410.0,0.1802709]
[1752193837212,0.81198551,115420.0,115410.0,0.1802709]
[1752193837413,0.46358001,115420.0,115410.0,0.1802709]
[1752193837709,0.46258001,115420.0,115410.0,0.1792709]
[1752193837910,0.46358001,115420.0,115410.0,0.1792709]
[1752193838111,0.36336001,115420.0,115410.0,0.6003464]
[1752193838299,0.36236001,115420.0,115410.0,0.6304464]
[1752193838502,0.36236001,115420.0,115410.0,0.6294464]
[1752193838701,0.36236001,115420.0,115410.0,0.6314464]
[1752193838916,0.39968001,115420.0,115410.0,0.6314464]
[1752193839302,0.43278001,115420.0,115410.0,0.6314464]
[1752193839505,0.39968001,115420.0,115410.0,0.6314464]
[1752193839710,0.39968001,115420.0,115410.0,0.2830409]
[1752193840108,0.39968001,115420.0,115410.0,0.6314464]
[1752193842003,0.57293591,115420.0,115410.0,0.10977]
[1752193842203,0.57293591,115420.0,115410.0,0.004]
[1752193842408,0.63643591,115420.0,115410.0,0.004]
[1752193842619,0.98484141,115420.0,115410.0,0.004]
[1752193843013,0.63643591,115420.0,115410.0,0.004]
[1752193843317,0.63643591,115420.0,115410.0,0.1772709]
[1752193843517,0.46318001,115420.0,115410.0,0.2178409]
[1752193843705,0.63643591,115420.0,115410.0,0.5662464]
[1752193843911,0.63643591,115420.0,115410.0,0.2178409]
[1752193844110,0.46318001,115420.0,115410.0,0.1772709]
[1752193844717,0.43238001,115420.0,115410.0,0.5662464]
[1752193844916,0.39968001,115420.0,115410.0,0.6296464]
[1752193845216,0.36236001,115420.0,115410.0,0.6296464]
[1752193845410,0.36236001,115420.0,115410.0,1.2645664]
[1752193845411,0.00156001,115420.0,115410.0,1.2645664]
[1752193845611,0.001,115420.0,115410.0,1.2645664]
[1752193845913,0.001,115420.0,115410.0,2.0486544]
[1752193847232,0.001,115420.0,115410.0,1.7986544]
[1752193847731,0.00012974,115430.0,115420.0,0.213826]
[1752193847927,0.00012974,115430.0,115420.0,0.9882315]
[1752193848234,0.002,115450.0,115440.0,0.2137959]
[1752193848425,0.00256001,115450.0,115440.0,1.2622414]
[1752193848732,0.002,115450.0,115440.0,1.2626814]
[1752193849120,0.002,115450.0,115440.0,1.6234814]
[1752193849325,0.002,115450.0,115440.0,0.9886414]
[1752193849520,0.002,115450.0,115440.0,1.6234814]
[1752193849718,0.004,115450.0,115440.0,1.6244814]
[1752193849937,0.3932,115480.0,115470.0,0.1731809]
[1752193849938,0.3919,115480.0,115470.0,0.1731809]
[1752193850122,0.39250001,115480.0,115470.0,0.5621564]
[1752193850318,0.39250001,115480.0,115470.0,0.2787909]
[1752193850319,0.42982001,115480.0,115470.0,0.2787909]
[1752193850629,0.03732,115470.0,115460.0,0.257059]
[1752193850827,0.45892,115470.0,115460.0,0.3003578]
[1752193851019,0.06818001,115470.0,115460.0,0.64889304]
[1752193851225,0.06762,115470.0,115460.0,0.71393304]
[1752193852331,0.0303,115470.0,115460.0,0.71393304]
[1752193852526,0.5142901,115480.0,115470.0,0.2119009]
[1752193852731,0.4837901,115480.0,115470.0,0.5563064]
[1752193852927,0.45409011,115480.0,115470.0,0.6213464]
[1752193853126,0.41280011,115480.0,115470.0,0.6213464]
[1752193853623,0.40780011,115480.0,115470.0,0.6163464]
[1752193853831,0.41380011,115480.0,115470.0,0.6173464]
[1752193854135,0.36740001,115480.0,115470.0,0.6173464]